Workbook

Sheet Лист1
A1: Школа | C1: МБОУ Маныч- Балабинская ООШ | F1: Согласовано | G1: должность | H1: директор
A2: Типовое примерное меню приготавливаемых блюд | G2: фамилия | H2: Тихонова Алена Владимировна
A3: Возрастная категория | E3: 7-11 лет | G3: дата | H3: 1 | I3: 1 | J3: 2026
H4: день | I4: месяц | J4: год
A5: Неделя | B5: День недели | C5: Прием пищи | D5: Раздел меню | E5: Блюда | F5: Вес блюда, г | G5: Белки | H5: Жиры | I5: Углеводы | J5: Калорийность | K5: № рецептуры | L5: Цена
A6: 1 | B6: 1 | C6: Завтрак | D6: гор.блюдо | E6: каша молочная вязкая "Дружба"из риса и пшена | F6: 150 | G6: 15 | H6: 15 | I6: 42 | J6: 362 | K6: 54-16к/2022н
E7: оладьи с повидлом | F7: 75 | G7: 3.9 | H7: 4.9 | I7: 17 | J7: 114 | K7: 399/2017м
D8: гор.напиток | E8: чай с сахаром | F8: 200 | G8: 0.2 | H8: 0 | I8: 10.4 | J8: 41 | K8: 54-2гн/2022н
D9: хлеб | E9: хлеб пшеничный | F9: 20 | G9: 2 | H9: 0.4 | I9: 10 | J9: 47 | K9: 701/2010
D10: фрукты | E10: яблоки свежие | F10: 100 | G10: 0.4 | H10: 0.4 | I10: 9.5 | J10: 47 | K10: 338/2017
D13: итого | F13: =SUM(F6:F12) -> 545 | G13: =SUM(G6:G12) -> 21.5 | H13: =SUM(H6:H12) -> 20.7 | I13: =SUM(I6:I12) -> 88.9 | J13: =SUM(J6:J12) -> 611
A14: =A6 -> 1 | B14: =B6 -> 1 | C14: Обед | D14: закуска
D15: 1 блюдо
D16: 2 блюдо
D17: гарнир
D18: напиток
D19: хлеб бел.
D20: хлеб черн.
D23: итого | F23: =SUM(F14:F22) -> 0 | G23: =SUM(G14:G22) -> 0 | H23: =SUM(H14:H22) -> 0 | I23: =SUM(I14:I22) -> 0 | J23: =SUM(J14:J22) -> 0
A24: =A6 -> 1 | B24: =B6 -> 1 | C24: Итого за день: | F24: =F13+F23 -> 545 | G24: =G13+G23 -> 21.5 | H24: =H13+H23 -> 20.7 | I24: =I13+I23 -> 88.9 | J24: =J13+J23 -> 611
A25: 1 | B25: 2 | C25: Завтрак | D25: гор.блюдо | E25: плов из птицы | F25: 200 | G25: 16.9 | H25: 15.9 | I25: 38.97 | J25: 435 | K25: 246/2017//171/2017
D26: гор.напиток | E26: чай с сахаром и лимоном | F26: 200 | G26: 0.3 | H26: 0 | I26: 10.58 | J26: 61 | K26: 54-3гн/2022н
D27: хлеб | E27: хлеб пшеничный | F27: 50 | G27: 3.9 | H27: 0.5 | I27: 24.1 | J27: 118 | K27: 701/2010
D28: овощи | E28: овощи сезонные помидоры | F28: 60 | G28: 11 | H28: 13 | I28: 23 | J28: 14
D31: итого | F31: =SUM(F25:F30) -> 510 | G31: =SUM(G25:G30) -> 32.1 | H31: =SUM(H25:H30) -> 29.4 | I31: =SUM(I25:I30) -> 96.65 | J31: =SUM(J25:J30) -> 628
A32: =A25 -> 1 | B32: =B25 -> 2 | C32: Обед | D32: закуска
D33: 1 блюдо
D34: 2 блюдо
D35: гарнир
D36: напиток
D37: хлеб бел.
D38: хлеб черн.
D41: итого | F41: =SUM(F32:F40) -> 0 | G41: =SUM(G32:G40) -> 0 | H41: =SUM(H32:H40) -> 0 | I41: =SUM(I32:I40) -> 0 | J41: =SUM(J32:J40) -> 0
A42: =A25 -> 1 | B42: =B25 -> 2 | C42: Итого за день: | F42: =F31+F41 -> 510 | G42: =G31+G41 -> 32.1 | H42: =H31+H41 -> 29.4 | I42: =I31+I41 -> 96.65 | J42: =J31+J41 -> 628
A43: 1 | B43: 3 | C43: Завтрак | D43: гор.блюдо | E43: пюре картофельное | F43: 150 | G43: 3 | H43: 5 | I43: 22 | J43: 150 | K43: 279/331/2017м
D44: гор.блюдо | E44: сосиски отварные | F44: 100 | G44: 11 | H44: 13 | I44: 24 | J44: 300 | K44: 203/2017м//71/70/2017м
D45: гор.напиток | E45: чай с молоком | F45: 200 | G45: 2 | H45: 1 | I45: 12 | J45: 64 | K45: 54-45гн/2022н
D46: хлеб | E46: хлеб ржано-пшеничный | F46: 40 | G46: 2.8 | H46: 0.55 | I46: 20 | J46: 94 | K46: 702/2010м
D47: овощи | E47: свекла отварная | F47: 60 | G47: 1 | H47: 0 | I47: 5 | J47: 25
D50: итого | F50: =SUM(F43:F49) -> 550 | G50: =SUM(G43:G49) -> 19.8 | H50: =SUM(H43:H49) -> 19.55 | I50: =SUM(I43:I49) -> 83 | J50: =SUM(J43:J49) -> 633
A51: =A43 -> 1 | B51: =B43 -> 3 | C51: Обед | D51: закуска
D52: 1 блюдо
D53: 2 блюдо
D54: гарнир
D55: напиток
D56: хлеб бел.
D57: хлеб черн.
D60: итого | F60: =SUM(F51:F59) -> 0 | G60: =SUM(G51:G59) -> 0 | H60: =SUM(H51:H59) -> 0 | I60: =SUM(I51:I59) -> 0 | J60: =SUM(J51:J59) -> 0
A61: =A43 -> 1 | B61: =B43 -> 3 | C61: Итого за день: | F61: =F50+F60 -> 550 | G61: =G50+G60 -> 19.8 | H61: =H50+H60 -> 19.55 | I61: =I50+I60 -> 83 | J61: =J50+J60 -> 633
A62: 1 | B62: 4 | C62: Завтрак | D62: гор.блюдо | E62: каша молочная гречневая жидкая с маслом и сахаром | F62: 200 | G62: 9.1 | H62: 11.4 | I62: 31.3 | J62: 223 | K62: 183/2017м
D64: гор.напиток | E64: кофейный напиток | F64: 200 | G64: 0.2 | H64: 0 | I64: 10.4 | J64: 75 | K64: 54-2гн/2022н
D65: хлеб | E65: кондитерское изделие | F65: 50 | G65: 6.5 | H65: 4 | I65: 19.4 | J65: 198 | K65: п.т
D66: фрукты | E66: фрукты яблоко | F66: 100 | G66: 0.4 | H66: 0.4 | I66: 9.5 | J66: 47 | K66: 338/2017
D69: итого | F69: =SUM(F62:F68) -> 550 | G69: =SUM(G62:G68) -> 16.2 | H69: =SUM(H62:H68) -> 15.8 | I69: =SUM(I62:I68) -> 70.6 | J69: =SUM(J62:J68) -> 543
A70: =A62 -> 1 | B70: =B62 -> 4 | C70: Обед | D70: закуска
D71: 1 блюдо
D72: 2 блюдо
D73: гарнир
D74: напиток
D75: хлеб бел.
D76: хлеб черн.
D79: итого | F79: =SUM(F70:F78) -> 0 | G79: =SUM(G70:G78) -> 0 | H79: =SUM(H70:H78) -> 0 | I79: =SUM(I70:I78) -> 0 | J79: =SUM(J70:J78) -> 0
A80: =A62 -> 1 | B80: =B62 -> 4 | C80: Итого за день: | F80: =F69+F79 -> 550 | G80: =G69+G79 -> 16.2 | H80: =H69+H79 -> 15.8 | I80: =I69+I79 -> 70.6 | J80: =J69+J79 -> 543
A81: 1 | B81: 5 | C81: Завтрак | D81: гор.блюдо | E81: тефтели с макаронами отварными | F81: 240 | G81: 15.2 | H81: 15.8 | I81: 36.2 | J81: 385 | K81: 291/2017м
D82: овощи | E82: помидоры порциями | F82: 60 | G82: 11 | H82: 13 | I82: 23 | J82: 14 | K82: 71/70/2017м
D83: гор.напиток | E83: чай с лимоном | F83: 200 | G83: 0.5 | I83: 19.8 | J83: 61 | K83: 54-1хн/2022н
D84: хлеб | E84: хлеб пшеничный обогащенный | F84: 50 | G84: 3.9 | H84: 0.5 | I84: 24.1 | J84: 94 | K84: 701/2010м
D85: фрукты
D88: итого | F88: =SUM(F81:F87) -> 550 | G88: =SUM(G81:G87) -> 30.6 | H88: =SUM(H81:H87) -> 29.3 | I88: =SUM(I81:I87) -> 103.1 | J88: =SUM(J81:J87) -> 554
A89: =A81 -> 1 | B89: =B81 -> 5 | C89: Обед | D89: закуска
D90: 1 блюдо
D91: 2 блюдо
D92: гарнир
D93: напиток
D94: хлеб бел.
D95: хлеб черн.
D98: итого | F98: =SUM(F89:F97) -> 0 | G98: =SUM(G89:G97) -> 0 | H98: =SUM(H89:H97) -> 0 | I98: =SUM(I89:I97) -> 0 | J98: =SUM(J89:J97) -> 0
A99: =A81 -> 1 | B99: =B81 -> 5 | C99: Итого за день: | F99: =F88+F98 -> 550 | G99: =G88+G98 -> 30.6 | H99: =H88+H98 -> 29.3 | I99: =I88+I98 -> 103.1 | J99: =J88+J98 -> 554
A100: 2 | B100: 1 | C100: Завтрак | D100: гор.блюдо | E100: каша манная молочная жидкая с сахаром и маслом | F100: 200 | G100: 6.8 | H100: 10.2 | I100: 29.8 | J100: 225 | K100: 181/2017
E101: оладьи с повидлом | F101: 75 | G101: 3.9 | H101: 4.9 | I101: 17 | J101: 114 | K101: 399/2017м
D102: гор.напиток | E102: чай с сахаром | F102: 200 | G102: 0.2 | H102: 0 | I102: 10.4 | J102: 41 | K102: 54-2гн/2022н
D103: хлеб | E103: хлеб пшеничный | F103: 50 | G103: 3.9 | H103: 0.5 | I103: 24.1 | J103: 118 | K103: 701/2010м
D104: фрукты | E104: яблоки свежие | F104: 100 | G104: 0.4 | H104: 0.4 | I104: 9.54 | J104: 47 | K104: 338/2017
D107: итого | F107: =SUM(F100:F106) -> 625 | G107: =SUM(G100:G106) -> 15.2 | H107: =SUM(H100:H106) -> 16 | I107: =SUM(I100:I106) -> 90.84 | J107: =SUM(J100:J106) -> 545
A108: =A100 -> 2 | B108: =B100 -> 1 | C108: Обед | D108: закуска
D109: 1 блюдо
D110: 2 блюдо
D111: гарнир
D112: напиток
D113: хлеб бел.
D114: хлеб черн.
D117: итого | F117: =SUM(F108:F116) -> 0 | G117: =SUM(G108:G116) -> 0 | H117: =SUM(H108:H116) -> 0 | I117: =SUM(I108:I116) -> 0 | J117: =SUM(J108:J116) -> 0
A118: =A100 -> 2 | B118: =B100 -> 1 | C118: Итого за день: | F118: =F107+F117 -> 625 | G118: =G107+G117 -> 15.2 | H118: =H107+H117 -> 16 | I118: =I107+I117 -> 90.84 | J118: =J107+J117 -> 545
A119: 2 | B119: 2 | C119: Завтрак | D119: гор.блюдо | E119: пюре картофельное | F119: 150 | G119: 3 | H119: 5 | I119: 22 | J119: 150 | K119: 295/2017м//171/2017
E120: сосиски отварные | F120: 100 | G120: 11 | H120: 13 | I120: 24 | J120: 300 | K120: 52/2017м
D121: гор.напиток | E121: чай с молоком | F121: 200 | G121: 0.3 | H121: 0 | I121: 10.6 | J121: 64 | K121: 54-3гн/2022н
D122: хлеб | E122: хлеб пшеничный | F122: 40 | G122: 1.68 | H122: 0.3 | I122: 14.8 | J122: 94 | K122: 702/2010м
D123: овощи | E123: свекла отварная | F123: 60 | G123: 1 | H123: 0 | I123: 5 | J123: 25
D126: итого | F126: =SUM(F119:F125) -> 550 | G126: =SUM(G119:G125) -> 16.98 | H126: =SUM(H119:H125) -> 18.3 | I126: =SUM(I119:I125) -> 76.4 | J126: =SUM(J119:J125) -> 633
A127: =A119 -> 2 | B127: =B119 -> 2 | C127: Обед | D127: закуска
D128: 1 блюдо
D129: 2 блюдо
D130: гарнир
D131: напиток
D132: хлеб бел.
D133: хлеб черн.
D136: итого | F136: =SUM(F127:F135) -> 0 | G136: =SUM(G127:G135) -> 0 | H136: =SUM(H127:H135) -> 0 | I136: =SUM(I127:I135) -> 0 | J136: =SUM(J127:J135) -> 0
A137: =A119 -> 2 | B137: =B119 -> 2 | C137: Итого за день: | F137: =F126+F136 -> 550 | G137: =G126+G136 -> 16.98 | H137: =H126+H136 -> 18.3 | I137: =I126+I136 -> 76.4 | J137: =J126+J136 -> 633
A138: 2 | B138: 3 | C138: Завтрак | D138: гор.блюдо | E138: плов из птицы | F138: 200 | G138: 16.9 | H138: 15.9 | I138: 38.97 | J138: 435 | K138: 246/2017//171/2017
D139: гор.напиток | E139: чай с сахаром и лимоном | F139: 200 | G139: 0.3 | H139: 0 | I139: 10.58 | J139: 61 | K139: 54-3гн/2022н
D140: хлеб | E140: хлеб пшеничный | F140: 40 | G140: 3.9 | H140: 0.5 | I140: 24.1 | J140: 94 | K140: 701/2010
D141: овощи | E141: овощи сезонные помидоры | F141: 60 | G141: 11 | H141: 13 | I141: 23 | J141: 14
D145: итого | F145: =SUM(F138:F144) -> 500 | G145: =SUM(G138:G144) -> 32.1 | H145: =SUM(H138:H144) -> 29.4 | I145: =SUM(I138:I144) -> 96.65 | J145: =SUM(J138:J144) -> 604
A146: =A138 -> 2 | B146: =B138 -> 3 | C146: Обед | D146: закуска
D147: 1 блюдо
D148: 2 блюдо
D149: гарнир
D150: напиток
D151: хлеб бел.
D152: хлеб черн.
D155: итого | F155: =SUM(F146:F154) -> 0 | G155: =SUM(G146:G154) -> 0 | H155: =SUM(H146:H154) -> 0 | I155: =SUM(I146:I154) -> 0 | J155: =SUM(J146:J154) -> 0
A156: =A138 -> 2 | B156: =B138 -> 3 | C156: Итого за день: | F156: =F145+F155 -> 500 | G156: =G145+G155 -> 32.1 | H156: =H145+H155 -> 29.4 | I156: =I145+I155 -> 96.65 | J156: =J145+J155 -> 604
A157: 2 | B157: 4 | C157: Завтрак | D157: гор.блюдо | E157: каша молочная овсяная жидкая с маслом и сахаром | F157: 200 | G157: 8.4 | H157: 12.5 | I157: 44.4 | J157: 219 | K157: 182/2017
D159: гор.напиток | E159: кофейный напиток | F159: 200 | G159: 0.2 | H159: 0 | I159: 10.38 | J159: 75 | K159: 54-2гн/2022н
D160: хлеб | E160: кондитерское изделие | F160: 50 | G160: 6.5 | H160: 4.04 | I160: 19.37 | J160: 198 | K160: п.т
D161: фрукты | E161: яблоко | F161: 100 | G161: 0.4 | H161: 0.4 | I161: 9.54 | J161: 47 | K161: 338/2017
D164: итого | F164: =SUM(F157:F163) -> 550 | G164: =SUM(G157:G163) -> 15.5 | H164: =SUM(H157:H163) -> 16.94 | I164: =SUM(I157:I163) -> 83.69 | J164: =SUM(J157:J163) -> 539
A165: =A157 -> 2 | B165: =B157 -> 4 | C165: Обед | D165: закуска
D166: 1 блюдо
D167: 2 блюдо
D168: гарнир
D169: напиток
D170: хлеб бел.
D171: хлеб черн.
D174: итого | F174: =SUM(F165:F173) -> 0 | G174: =SUM(G165:G173) -> 0 | H174: =SUM(H165:H173) -> 0 | I174: =SUM(I165:I173) -> 0 | J174: =SUM(J165:J173) -> 0
A175: =A157 -> 2 | B175: =B157 -> 4 | C175: Итого за день: | F175: =F164+F174 -> 550 | G175: =G164+G174 -> 15.5 | H175: =H164+H174 -> 16.94 | I175: =I164+I174 -> 83.69 | J175: =J164+J174 -> 539
A176: 2 | B176: 5 | C176: Завтрак | D176: гор.блюдо | E176: сосиски с макаронами отварные 100/150 | F176: 250 | G176: 12.9 | H176: 15.7 | I176: 32.6 | J176: 530 | K176: 289/2017м
E177: консервы закусочные икра кабачковая | F177: 60 | G177: 1.7 | H177: 0.1 | I177: 3.5 | J177: 47 | K177: 131/2017м
D178: гор.напиток | E178: чай с сахаром | F178: 200 | G178: 0.2 | H178: 0 | I178: 10.4 | J178: 41 | K178: 54-2гн/2022н
D179: хлеб | E179: хлеб пшеничный | F179: 50 | G179: 3.9 | H179: 0.5 | I179: 24.1 | J179: 118 | K179: 701/2010
D183: итого | F183: =SUM(F176:F182) -> 560 | G183: =SUM(G176:G182) -> 18.7 | H183: =SUM(H176:H182) -> 16.3 | I183: =SUM(I176:I182) -> 70.6 | J183: =SUM(J176:J182) -> 736
A184: =A176 -> 2 | B184: =B176 -> 5 | C184: Обед | D184: закуска
D185: 1 блюдо
D186: 2 блюдо
D187: гарнир
D188: напиток
D189: хлеб бел.
D190: хлеб черн.
D193: итого | F193: =SUM(F184:F192) -> 0 | G193: =SUM(G184:G192) -> 0 | H193: =SUM(H184:H192) -> 0 | I193: =SUM(I184:I192) -> 0 | J193: =SUM(J184:J192) -> 0
A194: =A176 -> 2 | B194: =B176 -> 5 | C194: Итого за день: | F194: =F183+F193 -> 560 | G194: =G183+G193 -> 18.7 | H194: =H183+H193 -> 16.3 | I194: =I183+I193 -> 70.6 | J194: =J183+J193 -> 736
C195: Среднее значение за период: | F195: =(F24+F42+F61+F80+F99+F118+F137+F156+F175+F194)/(IF(F24=0, 0, 1)+IF(F42=0, 0, 1)+IF(F61=0, 0, 1)+IF(F80=0, 0, 1)+IF(F99=0, 0, 1)+IF(F118=0, 0, 1)+IF(F137=0, 0, 1)+IF(F156=0, 0, 1)+IF(F175=0, 0, 1)+IF(F194=0, 0, 1)) -> 549 | G195: =(G24+G42+G61+G80+G99+G118+G137+G156+G175+G194)/(IF(G24=0, 0, 1)+IF(G42=0, 0, 1)+IF(G61=0, 0, 1)+IF(G80=0, 0, 1)+IF(G99=0, 0, 1)+IF(G118=0, 0, 1)+IF(G137=0, 0, 1)+IF(G156=0, 0, 1)+IF(G175=0, 0, 1)+IF(G194=0, 0, 1)) -> 21.868 | H195: =(H24+H42+H61+H80+H99+H118+H137+H156+H175+H194)/(IF(H24=0, 0, 1)+IF(H42=0, 0, 1)+IF(H61=0, 0, 1)+IF(H80=0, 0, 1)+IF(H99=0, 0, 1)+IF(H118=0, 0, 1)+IF(H137=0, 0, 1)+IF(H156=0, 0, 1)+IF(H175=0, 0, 1)+IF(H194=0, 0, 1)) -> 21.169 | I195: =(I24+I42+I61+I80+I99+I118+I137+I156+I175+I194)/(IF(I24=0, 0, 1)+IF(I42=0, 0, 1)+IF(I61=0, 0, 1)+IF(I80=0, 0, 1)+IF(I99=0, 0, 1)+IF(I118=0, 0, 1)+IF(I137=0, 0, 1)+IF(I156=0, 0, 1)+IF(I175=0, 0, 1)+IF(I194=0, 0, 1)) -> 86.043 | J195: =(J24+J42+J61+J80+J99+J118+J137+J156+J175+J194)/(IF(J24=0, 0, 1)+IF(J42=0, 0, 1)+IF(J61=0, 0, 1)+IF(J80=0, 0, 1)+IF(J99=0, 0, 1)+IF(J118=0, 0, 1)+IF(J137=0, 0, 1)+IF(J156=0, 0, 1)+IF(J175=0, 0, 1)+IF(J194=0, 0, 1)) -> 602.6
